bitfinex/quotes_BTCUSD_20250313
["timestamp","ask_amount","ask_price","bid_price","bid_amount"]
[1741859767567,0.0133088,83539.0,83538.0,4e-07]
[1741859768304,0.0921088,83539.0,83538.0,4e-07]
[1741859769156,0.0133088,83539.0,83538.0,4e-07]
[1741859769340,0.0123088,83539.0,83538.0,4e-07]
[1741859769537,0.15103011,83539.0,83538.0,4e-07]
[1741859770103,0.15303011,83539.0,83538.0,4e-07]
[1741859770812,0.03406922,83539.0,83538.0,4e-07]
[1741859771172,0.03606922,83539.0,83538.0,4e-07]
[1741859776555,0.03106922,83539.0,83538.0,4e-07]
[1741859776756,0.03406922,83539.0,83538.0,4e-07]
[1741859776968,0.03606922,83539.0,83538.0,4e-07]
[1741859778656,0.07512995,83539.0,83538.0,4e-07]
[1741859778856,0.03606922,83539.0,83538.0,4e-07]
[1741859780172,0.02409922,83539.0,83538.0,4e-07]
[1741859780376,0.0053388,83539.0,83538.0,4e-07]
[1741859781005,0.0053388,83539.0,83538.0,0.0119704]
[1741859781563,0.0053388,83539.0,83538.0,0.1407704]
[1741859781994,0.0033388,83539.0,83538.0,0.26166834]
[1741859782215,0.239337,83565.0,83557.0,0.011967]
[1741859782387,0.011967,83560.0,83558.0,0.1236]
[1741859782631,0.1197066,83559.0,83558.0,0.1236]
[1741859782813,0.011967,83559.0,83558.0,0.150348]
[1741859782965,0.251318,83559.0,83558.0,0.150348]
[1741859783391,0.27007303,83559.0,83558.0,0.1236]
[1741859784014,0.27007303,83559.0,83558.0,0.1216]
[1741859784667,0.27107303,83559.0,83558.0,0.1216]
[1741859785510,0.27207303,83559.0,83558.0,0.1216]
[1741859787389,0.27107303,83559.0,83558.0,0.1216]
[1741859788159,0.27007303,83559.0,83558.0,0.1216]
[1741859788445,0.27007303,83559.0,83558.0,0.1226]
[1741859788852,0.27041183,83559.0,83558.0,0.1226]
[1741859789269,0.27041183,83559.0,83558.0,0.1236]
[1741859790617,0.27041183,83559.0,83558.0,0.0486]
[1741859792986,0.27041183,83559.0,83558.0,0.075898]
[1741859793700,0.27041183,83559.0,83558.0,0.0486]
[1741859794032,0.01909383,83559.0,83558.0,0.0486]
[1741859794309,0.01909383,83559.0,83558.0,0.060567]
[1741859795478,0.01909383,83559.0,83558.0,0.0486]
[1741859795687,0.03106083,83559.0,83558.0,0.0486]
[1741859796046,0.03106083,83559.0,83558.0,0.1022281]
[1741859796579,0.03106083,83559.0,83558.0,0.0486]
[1741859797789,0.01909383,83559.0,83558.0,0.0486]
[1741859798803,0.03106083,83559.0,83558.0,0.0486]
[1741859799613,0.27041183,83559.0,83558.0,0.0486]
[1741859800182,0.27041183,83559.0,83558.0,1.5486]
[1741859800792,0.27041183,83559.0,83558.0,0.002]
[1741859801413,0.2516568,83559.0,83558.0,0.0021694]
[1741859801972,0.2516568,83559.0,83558.0,0.0011694]
[1741859802384,0.0013388,83559.0,83558.0,0.0834694]
[1741859802585,0.0013388,83559.0,83558.0,0.09301314]
[1741859802792,0.0013388,83559.0,83558.0,0.09201314]
[1741859803249,0.0023388,83559.0,83558.0,0.09201314]
[1741859803616,0.0013388,83559.0,83558.0,0.09201314]
[1741859803818,0.0003388,83559.0,83558.0,0.09201314]
[1741859804167,0.0013388,83559.0,83558.0,0.09201314]
[1741859804368,0.03206031,83559.0,83558.0,0.0824694]
[1741859804563,0.03106031,83559.0,83558.0,0.0001694]
[1741859804890,0.03106031,83559.0,83558.0,0.0011694]
[1741859805292,0.03106031,83559.0,83558.0,0.0021694]
[1741859805994,0.03106031,83559.0,83558.0,0.0011694]
[1741859806399,0.03106031,83559.0,83558.0,0.0021694]
[1741859806922,0.03106031,83559.0,83558.0,0.0011694]
[1741859807059,0.03206031,83559.0,83558.0,0.0001694]
[1741859807463,0.03306031,83559.0,83558.0,0.0001694]
[1741859807659,0.11300371,83559.0,83558.0,0.0001694]
[1741859808938,0.11300371,83559.0,83558.0,4e-07]
[1741859809270,0.19000371,83559.0,83558.0,4e-07]
[1741859810136,0.18900371,83559.0,83558.0,4e-07]
[1741859810372,0.64850371,83559.0,83558.0,4e-07]
[1741859810543,0.64950371,83559.0,83558.0,4e-07]
[1741859811327,0.64850371,83559.0,83558.0,4e-07]
[1741859811530,0.65050371,83559.0,83558.0,4e-07]
[1741859812096,0.70220371,83559.0,83558.0,4e-07]
[1741859814433,0.65220371,83559.0,83558.0,4e-07]
[1741859814636,0.70220371,83559.0,83558.0,4e-07]
[1741859815755,0.70120371,83559.0,83558.0,4e-07]
[1741859815905,0.69920371,83559.0,83558.0,4e-07]
[1741859816290,0.70820371,83559.0,83558.0,4e-07]
[1741859816495,0.85196371,83559.0,83558.0,4e-07]
[1741859817652,0.70820371,83559.0,83558.0,4e-07]
[1741859817832,0.85196371,83559.0,83558.0,4e-07]
[1741859821099,0.70820371,83559.0,83558.0,4e-07]
[1741859821251,0.85196371,83559.0,83558.0,4e-07]
[1741859822742,1.94226371,83559.0,83558.0,4e-07]
[1741859823826,1.79850371,83559.0,83558.0,4e-07]
[1741859824031,1.89056371,83559.0,83558.0,4e-07]
[1741859824255,1.8718092,83559.0,83558.0,4e-07]
[1741859824563,1.8768092,83559.0,83558.0,4e-07]
[1741859826144,1.8718092,83559.0,83558.0,4e-07]
[1741859826532,1.8768092,83559.0,83558.0,4e-07]
[1741859826741,1.8718092,83559.0,83558.0,4e-07]
[1741859827110,1.89556904,83559.0,83558.0,4e-07]
[1741859827333,1.89056904,83559.0,83558.0,4e-07]
[1741859827547,1.74680904,83559.0,83558.0,4e-07]
[1741859827737,1.89056904,83559.0,83558.0,4e-07]
[1741859827947,1.81356904,83559.0,83558.0,4e-07]
[1741859828503,0.67326904,83559.0,83558.0,4e-07]
[1741859828756,0.4493846,83559.0,83558.0,4e-07]
[1741859828934,0.5931446,83559.0,83558.0,4e-07]
[1741859829352,0.4493846,83559.0,83558.0,4e-07]
[1741859841092,0.4993846,83559.0,83558.0,4e-07]
[1741859841348,0.5043846,83559.0,83558.0,4e-07]
[1741859841556,0.4493846,83559.0,83558.0,4e-07]
[1741859850246,0.4993846,83559.0,83558.0,4e-07]
[1741859850459,0.4493846,83559.0,83558.0,4e-07]
[1741859852143,0.4993846,83559.0,83558.0,4e-07]
[1741859853454,0.4493846,83559.0,83558.0,4e-07]
[1741859853678,0.61934549,83559.0,83558.0,4e-07]
[1741859854082,0.56934549,83559.0,83558.0,4e-07]
[1741859854569,0.61934549,83559.0,83558.0,4e-07]
[1741859854764,0.251376,83540.0,83539.0,0.04476895]
[1741859855476,0.27013519,83540.0,83539.0,0.04476895]
[1741859857688,0.27013519,83540.0,83539.0,0.04576895]
[1741859859372,0.27013519,83540.0,83539.0,0.04593835]
[1741859859779,0.01875919,83540.0,83539.0,0.14503223]
[1741859860012,0.011969,83545.0,83540.0,0.1203]
[1741859860188,0.01197,83542.0,83541.0,0.1231]
[1741859860487,0.011969,83543.0,83541.0,0.1231]
[1741859860699,0.251368,83543.0,83541.0,0.1231]
[1741859860899,0.01197,83542.0,83541.0,0.1231]
[1741859861452,0.251365,83544.0,83539.0,0.0121394]
[1741859861675,0.01197,83540.0,83539.0,0.0001694]
[1741859862118,0.01197,83540.0,83539.0,0.1255694]
[1741859862924,0.03072819,83540.0,83539.0,0.1255694]
[1741859863382,0.03072819,83540.0,83539.0,0.1265694]
[1741859864266,0.03072819,83540.0,83539.0,0.1275694]
[1741859869099,0.03072819,83540.0,83539.0,0.14032638]
[1741859869305,0.01875819,83540.0,83539.0,0.14032638]
[1741859869510,0.239385,83548.0,83541.0,0.239401]
[1741859869836,0.239389,83546.0,83542.0,0.15561]
[1741859870039,0.011969,83547.0,83542.0,0.395008]
[1741859870204,0.239385,83548.0,83544.0,0.1252]
[1741859870603,0.011969,83549.0,83544.0,0.364592]
[1741859870862,0.001,83548.0,83544.0,0.137169]
[1741859871068,0.002,83548.0,83544.0,0.137169]
[1741859871274,0.001,83548.0,83544.0,0.137169]
[1741859871426,0.001,83548.0,83545.0,0.140769]
[1741859871638,0.002,83548.0,83547.0,0.011969]
[1741859872054,0.001,83548.0,83547.0,0.011969]
[1741859872462,0.011968,83552.0,83548.0,0.239383]
[1741859872789,0.0123058,83558.0,83550.0,0.1208]
[1741859873021,0.0123058,83558.0,83557.0,0.137767]
[1741859873022,0.0003388,83558.0,83557.0,0.137767]
[1741859873228,0.0003388,83558.0,83557.0,0.1258]
[1741859873636,0.0003388,83558.0,83557.0,0.137767]
[1741859873858,0.0003388,83558.0,83557.0,0.281407]
[1741859874058,0.0023388,83558.0,83557.0,0.28382048]
[1741859874438,0.0003388,83558.0,83557.0,0.28382048]
[1741859875049,0.0003388,83558.0,83557.0,1.78382048]
[1741859876091,0.0003388,83558.0,83557.0,0.28382048]
[1741859876800,0.0003388,83558.0,83557.0,0.53514448]
[1741859877387,0.01909264,83558.0,83557.0,0.53514448]
[1741859877601,0.01909264,83558.0,83557.0,2.15484547]
[1741859877801,0.0003388,83571.0,83570.0,0.382586]
[1741859878004,0.00043264,83571.0,83570.0,0.382586]
[1741859878391,0.00043264,83571.0,83570.0,0.50228699]
[1741859878598,0.00043264,83571.0,83570.0,0.51666747]
[1741859879389,0.00043264,83571.0,83570.0,0.52266747]
[1741859879816,0.00043264,83571.0,83570.0,0.51666747]
[1741859880161,0.00043264,83571.0,83570.0,0.52166747]
[1741859880923,0.00043264,83571.0,83570.0,0.51666747]
[1741859881161,0.239608,83588.0,83581.0,0.239286]
[1741859881337,0.239271,83587.0,83582.0,0.14356]
[1741859881544,0.01875098,83584.0,83582.0,0.14356]
[1741859881884,0.01875098,83584.0,83583.0,0.251247]
[1741859882014,0.000339,83588.0,83587.0,0.251234]
[1741859882252,0.000339,83588.0,83587.0,0.374534]
[1741859882478,0.000339,83588.0,83587.0,0.49423499]
[1741859882702,0.000339,83593.0,83592.0,0.251219]
[1741859882862,0.000339,83593.0,83592.0,0.49691999]
[1741859883066,0.000339,83593.0,83592.0,0.54088572]
[1741859884944,0.000339,83593.0,83592.0,2.04088572]
[1741859885264,0.000339,83593.0,83592.0,2.04688572]
[1741859885616,0.0003392,83603.0,83600.0,0.37572609]
[1741859885821,0.00075148,83601.0,83600.0,0.63898708]
[1741859886172,0.00075148,83601.0,83600.0,0.65336756]
[1741859886791,0.00075148,83601.0,83600.0,0.65836756]
[1741859886933,0.00075148,83601.0,83600.0,0.66336756]
[1741859889315,0.00075148,83601.0,83600.0,0.65836756]
[1741859889515,0.00075148,83601.0,83600.0,0.65336756]
[1741859889722,0.00075148,83601.0,83600.0,0.65636756]
[1741859889943,0.00075148,83601.0,83600.0,0.65936756]
[1741859890293,0.00075148,83601.0,83600.0,0.65336756]
[1741859890513,0.00075148,83601.0,83600.0,0.65636756]
[1741859890956,0.00075148,83601.0,83600.0,0.65336756]
[1741859891403,0.00075148,83601.0,83600.0,2.15636756]
[1741859891607,0.00075148,83601.0,83600.0,2.16036756]
[1741859892268,0.00075148,83601.0,83600.0,2.15636756]
[1741859892887,0.00075148,83601.0,83600.0,2.15336756]
[1741859893071,0.00075148,83601.0,83600.0,2.15936756]
[1741859893293,0.00075148,83601.0,83600.0,2.16336756]
[1741859893552,0.00075148,83601.0,83600.0,2.15936756]
[1741859893714,0.00075148,83601.0,83600.0,2.15336756]
[1741859893920,0.00075148,83601.0,83600.0,1.76461256]
[1741859894164,0.01271248,83601.0,83600.0,1.78239157]
[1741859894379,0.00075148,83601.0,83600.0,2.03358657]
[1741859894585,0.00075148,83601.0,83600.0,2.03858657]
[1741859894788,0.00075148,83601.0,83600.0,2.15828756]
[1741859895369,0.00075148,83601.0,83600.0,2.16428756]
[1741859895734,0.00075148,83601.0,83600.0,2.15828756]
[1741859895933,0.00075148,83601.0,83600.0,2.15328756]
[1741859896135,0.00075148,83601.0,83600.0,2.15528756]
[1741859896380,0.00075148,83601.0,83600.0,2.15828756]
[1741859896584,0.00075148,83601.0,83600.0,2.15328756]
[1741859896941,0.00075148,83601.0,83600.0,2.16324756]
[1741859897774,0.00075148,83601.0,83600.0,0.66324756]
[1741859898335,0.00075148,83601.0,83600.0,2.16324756]
[1741859903471,0.00075148,83601.0,83600.0,2.15324756]
[1741859903669,0.00075148,83601.0,83600.0,1.56711157]
[1741859903814,0.23998248,83601.0,83600.0,1.71551157]
[1741859904013,0.23998248,83601.0,83600.0,1.71051157]
[1741859904413,0.23998248,83601.0,83600.0,1.71451157]
[1741859904657,0.23998248,83601.0,83600.0,1.66751157]
[1741859904893,0.25194348,83601.0,83600.0,1.66751157]
[1741859905074,0.25194348,83601.0,83600.0,1.66251157]
[1741859905435,0.25194348,83601.0,83600.0,1.16251157]
[1741859905631,0.25194348,83601.0,83600.0,1.16651157]
[1741859905861,0.00075148,83601.0,83600.0,1.16651157]
[1741859906066,0.011963,83588.0,83587.0,0.0003388]
[1741859906267,0.011962,83594.0,83587.0,0.0123018]
[1741859906467,0.011962,83598.0,83592.0,0.25050137]
[1741859906688,0.011962,83597.0,83592.0,0.01124637]
[1741859906908,0.011962,83594.0,83589.0,0.251228]
[1741859907126,0.239261,83591.0,83588.0,0.02635468]
[1741859907321,0.251228,83589.0,83588.0,0.02635468]
[1741859907699,0.251228,83589.0,83588.0,0.16975468]
[1741859909252,0.251228,83589.0,83588.0,0.17275468]
[1741859909474,0.25121,83595.0,83589.0,0.013963]
[1741859909666,0.25121,83595.0,83590.0,0.25687105]
[1741859909903,0.011962,83598.0,83590.0,0.25687105]
[1741859910284,0.23925,83595.0,83590.0,0.25687105]
[1741859910484,0.011962,83595.0,83590.0,0.01761105]
[1741859910691,0.239253,83594.0,83590.0,0.01761105]
[1741859910904,0.011962,83596.0,83591.0,1.52635468]
[1741859911065,0.011962,83598.0,83593.0,0.239253]
[1741859911267,0.251204,83598.0,83593.0,0.251215]
[1741859911482,0.23998448,83601.0,83594.0,0.251211]
[1741859912046,0.251198,83599.0,83594.0,0.251211]
[1741859912497,0.011962,83595.0,83594.0,0.01761105]
[1741859913572,0.25121,83595.0,83594.0,0.01761105]
[1741859913787,0.25121,83595.0,83594.0,0.01861105]
[1741859913984,0.25121,83595.0,83594.0,0.001]
[1741859914620,0.251204,83598.0,83594.0,0.001]
[1741859914745,0.239242,83598.0,83594.0,0.001]
[1741859914939,0.00075148,83601.0,83599.0,0.011961]
[1741859915186,0.00075148,83601.0,83600.0,0.011961]
[1741859915996,0.00075148,83601.0,83600.0,1.511961]
[1741859916978,0.00175148,83601.0,83600.0,1.511961]
[1741859917530,0.00075148,83601.0,83600.0,1.511961]
[1741859917763,0.00075148,83601.0,83600.0,1.513961]
[1741859918116,0.00075148,83601.0,83600.0,1.63366199]
[1741859918328,0.00075148,83601.0,83600.0,1.68136199]
[1741859919362,0.00075148,83601.0,83600.0,1.76166199]
[1741859919765,0.00075148,83601.0,83600.0,1.80172154]
[1741859919924,0.00075148,83601.0,83600.0,1.80572154]
[1741859920575,0.00075148,83601.0,83600.0,2.00572154]
[1741859920770,0.00075148,83601.0,83600.0,2.01072154]
[1741859922037,0.00075148,83601.0,83600.0,2.00572154]
[1741859922237,0.00075148,83601.0,83600.0,1.96866199]
[1741859922441,0.00075148,83601.0,83600.0,1.97466199]
[1741859922659,0.00075148,83601.0,83600.0,1.97066199]
[1741859923109,0.00075148,83601.0,83600.0,1.97666199]
[1741859923709,4.8e-07,83601.0,83600.0,1.97666199]
[1741859923870,4.8e-07,83601.0,83600.0,2.01368838]
[1741859924283,6.8e-07,83603.0,83602.0,0.016961]
[1741859924635,0.00012441,83603.0,83602.0,0.13785764]
[1741859925068,4.1e-07,83603.0,83602.0,1.67486792]
[1741859925275,4.1e-07,83603.0,83602.0,1.67367227]
[1741859926003,4.1e-07,83603.0,83602.0,1.63666199]
[1741859926425,2.1e-07,83615.0,83614.0,0.251153]
[1741859926789,2.1e-07,83615.0,83614.0,1.40027399]
[1741859927340,2.1e-07,83615.0,83614.0,1.40527399]
[1741859927596,1e-08,83623.0,83622.0,0.251129]
[1741859927824,1e-08,83623.0,83622.0,0.37082999]
[1741859928036,1e-08,83623.0,83622.0,1.87082999]
[1741859929682,1e-08,83623.0,83622.0,1.95112999]
[1741859929898,1e-08,83623.0,83622.0,1.95612999]
[1741859930549,1e-08,83623.0,83622.0,1.96212999]
[1741859931061,1e-08,83623.0,83622.0,1.96312999]
[1741859934154,1e-08,83623.0,83622.0,1.88282999]
[1741859934382,1e-08,83623.0,83622.0,1.65528]
[1741859934581,1e-08,83623.0,83622.0,1.894451]
[1741859934913,1e-08,83623.0,83622.0,1.906409]
[1741859935158,1e-08,83623.0,83622.0,1.65528]
[1741859935557,1e-08,83623.0,83622.0,1.64928]
[1741859935757,1e-08,83623.0,83622.0,1.65228]
[1741859935965,1e-08,83623.0,83622.0,1.509]
[1741859936164,0.01195801,83623.0,83622.0,1.65228]
[1741859936373,1e-08,83623.0,83622.0,1.64328]
[1741859936546,1e-08,83623.0,83622.0,1.655238]
[1741859936727,1e-08,83623.0,83622.0,1.661238]
[1741859939796,1e-08,83623.0,83622.0,1.64928]
[1741859940556,1e-08,83623.0,83622.0,1.4908206]
[1741859940760,0.01195801,83623.0,83622.0,1.6341006]
[1741859941166,0.10969769,83623.0,83622.0,1.4908206]
[1741859942020,0.10969769,83623.0,83622.0,1.4878206]
[1741859942422,0.10969769,83623.0,83622.0,1.4901592]
[1741859942602,0.10969769,83623.0,83622.0,0.0053386]
[1741859942840,0.10969769,83623.0,83622.0,0.0003386]
[1741859943262,0.10969769,83623.0,83622.0,0.0023386]
[1741859943469,0.10969769,83623.0,83622.0,0.0003386]
[1741859946286,0.09095801,83623.0,83622.0,0.0003386]
[1741859949460,0.10969979,83623.0,83622.0,0.0003386]
[1741859952849,0.03069979,83623.0,83622.0,0.0003386]
[1741859954048,0.01874179,83623.0,83622.0,0.0003386]
[1741859954250,1e-08,83623.0,83622.0,0.0003386]
[1741859954875,0.01195801,83623.0,83622.0,0.0003386]
[1741859957082,0.03069914,83623.0,83622.0,0.0003386]
[1741859986094,0.11339914,83623.0,83622.0,0.0003386]
[1741859988578,0.03069914,83623.0,83622.0,0.0003386]
[1741859992381,0.01195801,83623.0,83622.0,0.0003386]
[1741860000281,0.01195801,83623.0,83622.0,6e-07]
[1741860000282,0.09779373,83623.0,83622.0,6e-07]
[1741860000524,0.22379373,83623.0,83622.0,6e-07]
[1741860000755,0.68829373,83623.0,83622.0,6e-07]
[1741860000958,0.63829373,83623.0,83622.0,6e-07]
[1741860001918,0.63829373,83623.0,83592.0,0.1898588]
[1741860001919,0.251216,83593.0,83592.0,0.1898588]
[1741860002146,0.251216,83593.0,83592.0,0.19027148]
[1741860002708,0.011961,83602.0,83592.0,0.19027148]
[1741860002709,0.01196,83608.0,83597.0,0.011962]
[1741860002930,0.23924,83599.0,83594.0,0.00119615]
[1741860003209,0.251204,83598.0,83593.0,0.0811]
[1741860003345,0.239226,83603.0,83597.0,0.251204]
[1741860003966,0.239233,83601.0,83596.0,0.011962]
[1741860004161,0.239233,83601.0,83596.0,0.251205]
[1741860004366,0.251191,83602.0,83596.0,0.251205]
[1741860004952,0.251191,83602.0,83597.0,0.254203]
[1741860005150,0.239224,83604.0,83599.0,0.011961]
[1741860005354,0.011959,83615.0,83607.0,0.01196]
[1741860005552,0.0003392,83625.0,83606.0,0.047]
[1741860005553,0.251136,83620.0,83614.0,0.011959]
[1741860005794,0.011959,83616.0,83615.0,0.0804]
[1741860006140,0.01196,83609.0,83608.0,0.14312]
[1741860006381,0.251174,83607.0,83606.0,0.047]
[1741860006772,0.251174,83608.0,83606.0,0.1241]
[1741860006986,0.01196,83607.0,83606.0,0.047]
[1741860009498,0.01196,83607.0,83606.0,0.049]
[1741860009683,0.03070241,83607.0,83606.0,0.049]
[1741860009885,0.03070241,83607.0,83606.0,0.051]
[1741860010084,0.03070241,83607.0,83606.0,0.0513388]
[1741860011009,0.03070241,83607.0,83606.0,0.0043388]
[1741860012114,0.03070241,83607.0,83606.0,0.0023388]
[1741860012450,0.03070241,83607.0,83606.0,0.0003388]
[1741860013442,0.03070241,83607.0,83606.0,8e-07]
[1741860013645,0.11290241,83607.0,83606.0,8e-07]
[1741860014195,0.09416,83607.0,83606.0,8e-07]
[1741860014399,0.1789264,83607.0,83606.0,8e-07]
[1741860015801,0.09416,83607.0,83606.0,8e-07]
[1741860016769,0.01196,83607.0,83606.0,8e-07]
[1741860017129,0.239191,83615.0,83606.0,8e-07]
[1741860017329,0.03070572,83607.0,83606.0,8e-07]
[1741860019371,0.03070572,83607.0,83606.0,0.0010008]
[1741860021953,0.03087522,83607.0,83606.0,0.0010008]
[1741860023507,0.13203714,83607.0,83606.0,0.0010008]
[1741860023930,0.03087522,83607.0,83606.0,0.0010008]
[1741860027594,0.03087522,83607.0,83606.0,0.0791008]
[1741860027595,0.01891522,83607.0,83606.0,0.0791008]
[1741860027797,0.0001695,83607.0,83606.0,0.1374608]
[1741860028025,0.0001695,83607.0,83606.0,0.1255008]
[1741860028647,0.0001695,83607.0,83606.0,0.3647178]
[1741860028792,0.0001695,83607.0,83606.0,0.3766778]
[1741860028991,0.0001695,83607.0,83606.0,0.1255008]
[1741860029531,0.0121295,83607.0,83606.0,0.1255008]
[1741860030846,0.0308722,83607.0,83606.0,0.1255008]
[1741860031248,0.0308722,83607.0,83606.0,1.6255008]
[1741860033540,0.0308722,83607.0,83606.0,0.1255008]
[1741860033922,0.0308722,83607.0,83606.0,0.0010008]
[1741860035006,0.0308722,83607.0,83606.0,0.0836008]
[1741860039922,0.0308722,83607.0,83606.0,0.0010008]
[1741860041118,0.0308722,83607.0,83606.0,0.03278418]
[1741860041326,0.0308722,83607.0,83606.0,0.0010008]
[1741860044302,0.0189122,83607.0,83606.0,0.0010008]
[1741860044674,0.2581262,83607.0,83606.0,0.0010008]
[1741860045099,0.0189122,83607.0,83606.0,0.0010008]
[1741860045644,0.0308722,83607.0,83606.0,0.0010008]
[1741860045849,0.0189122,83607.0,83606.0,0.0010008]
[1741860046879,0.0308722,83607.0,83606.0,0.0010008]
[1741860049211,0.0189122,83607.0,83606.0,0.0010008]
[1741860049421,0.0308722,83607.0,83606.0,0.0010008]
[1741860054648,0.0189122,83607.0,83606.0,0.0010008]
[1741860055405,0.0189122,83607.0,83606.0,1.5129608]
[1741860055815,0.0189122,83607.0,83606.0,1.5010008]
[1741860056951,0.0189122,83607.0,83606.0,1.90702179]
[1741860056952,0.0001695,83607.0,83606.0,1.90702179]
[1741860058204,0.0001695,83607.0,83606.0,1.90602179]
[1741860058431,0.0001695,83607.0,83606.0,1.90802179]
[1741860059032,0.0001695,83607.0,83606.0,1.91002179]
[1741860060402,0.0001695,83607.0,83606.0,1.90802179]
[1741860060679,0.0001695,83607.0,83606.0,1.91002179]
[1741860060839,0.0001695,83607.0,83606.0,1.90602179]
[1741860061042,0.0001695,83607.0,83606.0,1.75410179]
[1741860061407,0.0001695,83607.0,83606.0,1.94502752]
[1741860061580,0.0001695,83607.0,83606.0,1.94202752]
[1741860061760,0.0001695,83607.0,83606.0,1.89806179]
[1741860062169,0.0001695,83607.0,83606.0,2.15323879]
[1741860063921,0.0001695,83607.0,83606.0,2.20323879]
[1741860064114,5e-07,83607.0,83606.0,2.15323879]
[1741860064948,5e-07,83607.0,83606.0,2.91263879]
[1741860065360,5e-07,83607.0,83606.0,2.90863879]
[1741860065562,5e-07,83607.0,83606.0,2.91463879]
[1741860065952,5e-07,83607.0,83606.0,3.04583879]
[1741860066156,5e-07,83607.0,83606.0,2.91963879]
[1741860066484,1e-08,83623.0,83622.0,0.382629]
[1741860066653,1e-08,83623.0,83622.0,0.64524999]
[1741860067061,1e-08,83623.0,83622.0,2.14524999]
[1741860067443,1e-08,83623.0,83622.0,2.19524999]
[1741860067640,1e-08,83623.0,83622.0,2.14924999]
[1741860067848,1e-08,83623.0,83622.0,2.14966267]
[1741860068252,1e-08,83623.0,83622.0,2.15366267]
[1741860068476,1e-08,83623.0,83622.0,2.20366267]
[1741860068646,1e-08,83623.0,83622.0,2.15366267]
[1741860070390,1e-08,83623.0,83622.0,2.14966267]
[1741860070592,1e-08,83623.0,83622.0,2.15066267]
[1741860070969,1e-08,83623.0,83622.0,2.15566267]
[1741860071154,1e-08,83623.0,83622.0,2.15066267]
[1741860071388,1e-08,83623.0,83622.0,2.15566267]
[1741860071590,1e-08,83623.0,83622.0,2.01274267]
[1741860071889,1e-08,83623.0,83622.0,2.15562267]
[1741860072089,1e-08,83623.0,83622.0,2.01274267]
[1741860072527,1e-08,83623.0,83622.0,2.15562267]
[1741860073040,1e-08,83623.0,83622.0,2.01274267]
[1741860073270,1e-08,83623.0,83622.0,2.15562267]
[1741860073824,1e-08,83623.0,83622.0,0.65562267]
[1741860074428,1e-08,83623.0,83622.0,2.15562267]
[1741860079360,1e-08,83623.0,83622.0,2.15562267]
[1741860081815,0.000339,83630.0,83622.0,2.15562267]
[1741860081816,1e-08,83633.0,83632.0,0.011957]
[1741860082042,8e-07,83642.0,83641.0,0.375972]
[1741860082239,8e-07,83642.0,83641.0,0.63851299]
[1741860082444,8e-07,83642.0,83641.0,2.13851299]
[1741860083270,8e-07,83642.0,83641.0,2.06171299]
[1741860083965,8e-07,83642.0,83641.0,2.06671299]
[1741860086032,8e-07,83642.0,83641.0,2.07171299]
[1741860086237,8e-07,83642.0,83641.0,2.14921299]
[1741860087547,8e-07,83642.0,83641.0,1.82064099]
[1741860087669,8e-07,83642.0,83641.0,2.02357299]
[1741860087870,8e-07,83642.0,83641.0,1.6528]
[1741860088093,8e-07,83642.0,83641.0,0.01]
[1741860088094,0.3273698,83642.0,83641.0,0.01]
[1741860088893,0.3273698,83642.0,83641.0,0.005]
[1741860088894,0.0763008,83642.0,83641.0,0.005]
[1741860089270,0.0763008,83642.0,83641.0,0.019955]
[1741860089568,8e-07,83642.0,83641.0,0.25726753]
[1741860089744,8e-07,83642.0,83641.0,0.011955]
[1741860089953,8e-07,83642.0,83641.0,0.014955]
[1741860090540,8e-07,83642.0,83641.0,0.017955]
[1741860090959,0.0119558,83642.0,83641.0,0.003]
[1741860091378,0.011956,83636.0,83630.0,0.011957]
[1741860091572,0.251087,83636.0,83631.0,0.239145]
[1741860091781,0.251087,83636.0,83625.0,0.011958]
[1741860091782,0.011958,83623.0,83622.0,0.00041268]
[1741860092023,0.239157,83627.0,83622.0,0.00041268]
[1741860092364,0.251126,83624.0,83622.0,0.00041268]
[1741860092484,0.239163,83625.0,83622.0,0.00041268]
[1741860093125,0.011958,83624.0,83622.0,0.00041268]
[1741860093328,0.251126,83623.0,83622.0,0.00041268]
[1741860094064,0.251126,83623.0,83622.0,0.00441268]
[1741860094619,0.251126,83623.0,83622.0,0.00141268]
[1741860094823,0.251114,83627.0,83622.0,0.00141268]
[1741860094824,0.23913,83637.0,83622.0,0.00241268]
[1741860095022,0.011957,83632.0,83626.0,0.011958]
[1741860095180,0.0783,83637.0,83634.0,0.011956]
[1741860095388,0.239099,83648.0,83638.0,0.239125]
[1741860095389,0.0783,83644.0,83638.0,0.239125]
[1741860095585,0.011954,83649.0,83638.0,0.239125]
[1741860095586,0.0779,83652.0,83641.0,0.011955]
[1741860095785,0.0779,83652.0,83641.0,1.511955]
[1741860096020,0.011954,83650.0,83641.0,1.511955]
[1741860096224,0.328941,83652.0,83641.0,1.511955]
[1741860096421,0.011955,83646.0,83641.0,1.5]
[1741860096622,0.239111,83643.0,83641.0,1.51751656]
[1741860096910,0.0119558,83642.0,83641.0,1.5]
[1741860097257,0.03069095,83642.0,83641.0,1.503]
[1741860097996,0.011958,83625.0,83624.0,0.1428]
[1741860098200,0.251123,83625.0,83624.0,0.1428]
[1741860098535,0.251126,83623.0,83609.0,0.01196]
[1741860098733,0.251126,83623.0,83619.0,0.1428]
[1741860098954,0.330926,83623.0,83619.0,0.1428]
[1741860099567,0.35330799,83623.0,83619.0,0.1428]
[1741860100229,0.011958,83620.0,83619.0,0.1428]
[1741860100430,0.011958,83620.0,83619.0,0.1432134]
[1741860101012,0.07351399,83621.0,83619.0,0.1432134]
[1741860101216,0.011958,83620.0,83619.0,0.1432134]
[1741860101417,0.011958,83620.0,83619.0,0.15753474]
[1741860102142,0.011958,83620.0,83619.0,0.0004134]
[1741860102944,0.013958,83620.0,83619.0,0.0004134]
[1741860105566,0.013958,83620.0,83619.0,0.0007522]
[1741860105977,0.01196,83608.0,83607.0,0.000339]
[1741860106172,0.01196,83608.0,83607.0,0.00075281]
[1741860106173,0.251171,83608.0,83607.0,0.00075281]
[1741860106936,0.26991337,83608.0,83607.0,0.00075281]
[1741860107410,0.26991337,83608.0,83607.0,0.00175281]
[1741860107611,0.01874237,83608.0,83607.0,0.00175281]
[1741860108028,0.26991337,83608.0,83607.0,0.00175281]
[1741860108744,0.01874237,83608.0,83607.0,0.00175281]
[1741860108957,0.01874237,83608.0,83607.0,0.00375281]
[1741860108958,0.03070237,83608.0,83607.0,0.00375281]
[1741860111186,0.01874237,83608.0,83607.0,0.24296681]
[1741860111419,0.01874237,83608.0,83607.0,0.25492681]